bitfinex/quotes_BTCUSD_20251212
["timestamp","ask_amount","ask_price","bid_price","bid_amount"]
[1765551401517,0.03952,92554.0,92553.0,0.00211611]
[1765551401877,0.27185006,92554.0,92553.0,0.00011611]
[1765551402013,0.25461006,92554.0,92553.0,0.00011611]
[1765551402268,0.28719708,92554.0,92553.0,0.00011611]
[1765551403698,0.29219708,92554.0,92553.0,0.00011611]
[1765551404020,0.04552,92554.0,92553.0,0.00111611]
[1765551404422,0.03852,92554.0,92553.0,0.00011611]
[1765551404799,0.04352,92554.0,92553.0,0.00011611]
[1765551405348,0.08572,92554.0,92553.0,0.00011611]
[1765551405545,0.09569,92554.0,92553.0,0.00011611]
[1765551405701,0.1772111,92554.0,92553.0,0.00011611]
[1765551406835,0.1732111,92554.0,92553.0,0.00011611]
[1765551407036,0.09469,92554.0,92553.0,0.00011611]
[1765551407227,0.05149,92554.0,92553.0,0.00011611]
[1765551407619,0.05749,92554.0,92553.0,0.00011611]
[1765551407970,0.05449,92554.0,92553.0,0.00011611]
[1765551408270,0.03147,92554.0,92553.0,0.21620851]
[1765551408488,0.03147,92554.0,92553.0,0.00011611]
[1765551408690,0.006,92554.0,92553.0,0.03852822]
[1765551408904,0.006,92554.0,92553.0,0.10432822]
[1765551409091,0.01,92554.0,92553.0,0.10432822]
[1765551409299,0.01,92554.0,92553.0,0.08172822]
[1765551409300,0.004,92554.0,92553.0,0.08172822]
[1765551409505,0.004,92554.0,92553.0,0.06653822]
[1765551410385,0.004,92554.0,92553.0,0.02333822]
[1765551410790,0.004,92554.0,92553.0,0.08172822]
[1765551411001,0.004,92554.0,92553.0,0.10432822]
[1765551411409,0.009,92554.0,92553.0,0.10432822]
[1765551411618,0.009,92554.0,92553.0,0.39502822]
[1765551411774,0.02599331,92598.0,92591.0,0.21600371]
[1765551411998,0.00160331,92598.0,92591.0,0.21600371]
[1765551412818,0.01562,92592.0,92591.0,0.21600371]
[1765551413232,0.01008624,92593.0,92591.0,0.21600371]
[1765551413602,0.00011624,92593.0,92591.0,0.21600371]
[1765551413941,0.01562,92592.0,92591.0,0.21600371]
[1765551414343,0.04001,92592.0,92591.0,0.003]
[1765551414872,0.06794143,92592.0,92591.0,0.003]
[1765551415070,0.04001,92592.0,92591.0,0.003]
[1765551415290,0.00011624,92593.0,92591.0,0.003]
[1765551415459,0.04001,92592.0,92591.0,0.003]
[1765551415661,0.01562,92592.0,92591.0,0.003]
[1765551415887,0.01562,92592.0,92591.0,0.006]
[1765551416409,0.01562,92592.0,92590.0,0.22680532]
[1765551416410,0.04001,92592.0,92590.0,0.22680532]
[1765551416779,0.04001,92592.0,92591.0,0.008]
[1765551416946,0.04001,92592.0,92591.0,0.003]
[1765551416947,0.01562,92592.0,92591.0,0.003]
[1765551417388,0.00011624,92593.0,92592.0,0.21600138]
[1765551418263,0.00011624,92593.0,92592.0,0.39558919]
[1765551418565,0.00011624,92593.0,92592.0,0.29860425]
[1765551419008,0.00011624,92593.0,92592.0,0.29324425]
[1765551419181,0.00011624,92593.0,92592.0,0.31584425]
[1765551419987,0.00011624,92593.0,92592.0,0.60654425]
[1765551420286,0.00011624,92593.0,92592.0,0.61054425]
[1765551420492,1e-08,92598.0,92597.0,0.56507971]
[1765551420660,0.0004,92620.0,92619.0,0.25913841]
[1765551420849,0.0004,92620.0,92619.0,0.26075128]
[1765551421311,0.0004,92620.0,92619.0,0.29854128]
[1765551421444,0.0004,92620.0,92619.0,0.58924128]
[1765551421642,0.0004,92620.0,92619.0,0.59770927]
[1765551422571,0.0004,92620.0,92619.0,0.62030927]
[1765551422772,0.0004,92620.0,92619.0,0.59770927]
[1765551422955,0.0004,92620.0,92619.0,0.62030927]
[1765551423160,0.0004,92620.0,92619.0,0.56664128]
[1765551423770,0.0004,92620.0,92619.0,0.60648128]
[1765551424362,0.0004,92620.0,92619.0,0.61548128]
[1765551424593,0.0004,92620.0,92619.0,0.57564128]
[1765551424938,0.0004,92620.0,92619.0,0.56628128]
[1765551425230,0.0004,92620.0,92619.0,0.7199889]
[1765551425441,0.0004,92620.0,92619.0,0.7033889]
[1765551425656,0.0004,92620.0,92619.0,0.6277589]
[1765551425869,0.0004,92620.0,92619.0,0.53449128]
[1765551426086,0.0004,92620.0,92619.0,0.58988128]
[1765551426310,0.00103185,92620.0,92619.0,0.61248128]
[1765551426506,0.00103185,92620.0,92619.0,0.7259889]
[1765551426923,0.00103185,92620.0,92619.0,0.7229889]
[1765551427968,0.00103185,92620.0,92619.0,0.7169889]
[1765551428613,0.00103185,92620.0,92619.0,0.7219889]
[1765551429259,0.00103185,92620.0,92619.0,0.7169889]
[1765551429887,0.00103185,92620.0,92619.0,0.7199889]
[1765551431190,0.00103185,92620.0,92619.0,0.6649589]
[1765551431447,0.01665185,92620.0,92619.0,0.00461287]
[1765551431659,0.01665185,92620.0,92619.0,0.01061287]
[1765551431877,0.01665185,92620.0,92619.0,0.009]
[1765551432100,0.01665185,92620.0,92619.0,0.21893841]
[1765551432272,0.04104185,92620.0,92619.0,0.21593841]
[1765551432475,0.04104185,92620.0,92619.0,0.22293841]
[1765551432739,0.04104185,92620.0,92619.0,0.22093841]
[1765551433273,0.04104185,92620.0,92619.0,0.21593841]
[1765551433527,0.04104185,92620.0,92619.0,0.22093841]
[1765551433528,0.01665185,92620.0,92619.0,0.22093841]
[1765551433683,0.01665185,92620.0,92619.0,0.22193841]
[1765551434087,0.00103185,92620.0,92619.0,0.22193841]
[1765551434291,0.00103185,92620.0,92619.0,0.35588881]
[1765551434515,0.00103185,92620.0,92619.0,0.39367881]
[1765551434713,0.00103185,92620.0,92619.0,0.68437881]
[1765551435887,0.00103185,92620.0,92619.0,0.67837881]
[1765551436321,0.00103185,92620.0,92619.0,0.68937881]
[1765551436680,0.00103185,92620.0,92619.0,0.68237881]
[1765551437095,0.00103185,92620.0,92619.0,0.67837881]
[1765551437311,0.00103185,92620.0,92619.0,0.68637881]
[1765551437528,0.00103185,92620.0,92619.0,0.69137881]
[1765551437712,0.00103185,92620.0,92619.0,0.70861881]
[1765551439192,0.0004,92640.0,92639.0,0.21589179]
[1765551439328,0.0004,92640.0,92639.0,0.23404466]
[1765551439757,0.00097422,92640.0,92639.0,0.23404466]
[1765551440164,0.00097422,92640.0,92639.0,0.27724466]
[1765551440366,0.00097422,92640.0,92639.0,0.21750466]
[1765551440992,0.00097422,92640.0,92639.0,0.21850466]
[1765551441719,0.04059422,92640.0,92639.0,0.21850466]
[1765551441922,0.00097422,92640.0,92639.0,0.21850466]
[1765551442239,0.00097422,92640.0,92639.0,0.26170466]
[1765551442589,0.00097422,92640.0,92639.0,0.30251466]
[1765551442775,0.00097422,92640.0,92639.0,0.41693501]
[1765551442964,0.00097422,92640.0,92639.0,0.41993501]
[1765551443158,0.00097422,92640.0,92639.0,0.41593501]
[1765551443381,0.00097422,92640.0,92639.0,0.41793501]
[1765551443588,0.00097422,92640.0,92639.0,0.42093501]
[1765551443801,0.00097422,92640.0,92639.0,0.29948466]
[1765551443997,0.00097422,92640.0,92639.0,0.29748466]
[1765551444236,0.00097422,92640.0,92639.0,0.32175466]
[1765551444428,0.00097422,92640.0,92639.0,0.32375466]
[1765551445219,0.00097422,92640.0,92639.0,0.32175466]
[1765551445595,0.00097422,92640.0,92639.0,0.42085901]
[1765551445802,0.00097422,92640.0,92639.0,0.41785901]
[1765551446218,0.00097422,92640.0,92639.0,0.42185901]
[1765551446575,0.00097422,92640.0,92639.0,0.39358901]
[1765551446790,0.00097422,92640.0,92639.0,0.41785901]
[1765551447367,0.00097422,92640.0,92639.0,0.42485901]
[1765551448157,0.00097422,92640.0,92639.0,0.42285901]
[1765551448961,0.00097422,92640.0,92639.0,0.42585901]
[1765551450214,0.00097422,92640.0,92639.0,0.40158901]
[1765551450601,0.00097422,92640.0,92639.0,0.40908901]
[1765551451185,0.00097422,92640.0,92639.0,0.43335901]
[1765551451387,0.00097422,92640.0,92639.0,0.33884901]
[1765551451599,0.00097422,92640.0,92639.0,0.38204901]
[1765551452003,0.00097422,92640.0,92639.0,0.38504901]
[1765551452410,0.00097422,92640.0,92639.0,0.34184901]
[1765551452590,0.04059422,92640.0,92639.0,0.22089179]
[1765551453014,0.00097422,92640.0,92639.0,0.21589179]
[1765551453223,0.00097422,92640.0,92639.0,0.25909179]
[1765551453547,0.00097422,92640.0,92639.0,0.35192985]
[1765551453675,0.00097422,92640.0,92639.0,0.30551466]
[1765551453880,0.00097422,92640.0,92639.0,0.30151466]
[1765551454302,0.00097422,92640.0,92639.0,0.59221466]
[1765551454503,0.00097422,92640.0,92639.0,0.59721466]
[1765551454926,0.00097422,92640.0,92639.0,0.59421466]
[1765551455272,0.00097422,92640.0,92639.0,0.70472228]
[1765551456660,0.00097422,92640.0,92639.0,0.70872228]
[1765551460957,0.00097422,92640.0,92639.0,0.70472228]
[1765551461354,0.00097422,92640.0,92639.0,0.70972228]
[1765551462083,0.00097422,92640.0,92639.0,0.59014466]
[1765551462283,0.01629422,92640.0,92639.0,0.22250466]
[1765551462490,0.04059422,92640.0,92639.0,0.22089179]
[1765551462961,0.04059422,92640.0,92639.0,0.22389179]
[1765551463371,0.01629422,92640.0,92639.0,0.22389179]
[1765551463573,0.01629422,92640.0,92639.0,0.22089179]
[1765551463777,0.00097422,92640.0,92639.0,0.26409179]
[1765551464135,0.01629422,92640.0,92639.0,0.25909179]
[1765551464344,0.01629422,92640.0,92639.0,0.26209179]
[1765551464521,0.04059422,92640.0,92639.0,0.21889179]
[1765551464768,0.01629422,92640.0,92639.0,0.21889179]
[1765551465388,0.00097422,92640.0,92639.0,0.35695056]
[1765551466004,0.00097422,92640.0,92639.0,0.26209179]
[1765551466619,0.00097422,92640.0,92639.0,0.003]
[1765551466620,0.04059422,92640.0,92639.0,0.003]
[1765551466826,0.01629422,92640.0,92639.0,0.003]
[1765551467592,0.01629422,92640.0,92638.0,0.21589193]
[1765551467789,0.0004,92640.0,92639.0,0.002]
[1765551468012,0.0004,92640.0,92639.0,0.006]
[1765551468486,0.0004,92640.0,92639.0,0.002]
[1765551468885,0.0004,92640.0,92639.0,0.005]
[1765551469738,0.04016,92640.0,92639.0,0.005]
[1765551470117,0.04742315,92640.0,92639.0,0.005]
[1765551470332,0.04016,92640.0,92639.0,0.005]
[1765551470550,0.08336,92640.0,92639.0,0.005]
[1765551470752,0.42407839,92640.0,92639.0,0.005]
[1765551470952,2.44735465,92640.0,92639.0,0.005]
[1765551471153,2.44735465,92640.0,92639.0,0.003]
[1765551471154,2.55786227,92640.0,92639.0,0.003]
[1765551471356,0.01079692,92619.0,92613.0,0.01079762]
[1765551471558,0.01079703,92618.0,92614.0,0.22674757]
[1765551471756,0.03473703,92618.0,92615.0,0.01079738]
[1765551472209,0.02579,92616.0,92615.0,0.01079738]
[1765551472359,0.02579,92616.0,92615.0,0.21594774]
[1765551472560,0.04973,92616.0,92615.0,0.21594774]
[1765551473116,0.04973,92616.0,92611.0,0.01079785]
[1765551473316,0.02394,92615.0,92611.0,0.01079785]
[1765551473458,0.01582,92612.0,92611.0,0.22675491]
[1765551473870,0.00997,92616.0,92615.0,0.21594774]
[1765551474899,0.03179,92616.0,92615.0,0.21594774]
[1765551475106,0.05573,92616.0,92615.0,0.21594774]
[1765551475314,0.05573,92616.0,92612.0,0.21595472]
[1765551475315,0.06652727,92616.0,92612.0,0.01079773]
[1765551475536,0.01582,92613.0,92612.0,0.01079773]
[1765551475933,0.03976,92613.0,92612.0,0.01079773]
[1765551476154,0.03976,92613.0,92583.0,0.0432]
[1765551476155,0.21598405,92600.0,92583.0,0.0432]
[1765551476355,0.00997,92616.0,92580.0,0.00160314]
[1765551476356,0.00997,92596.0,92594.0,0.21599671]
[1765551476765,0.03976,92595.0,92594.0,0.21599671]
[1765551477319,0.01582,92595.0,92594.0,0.21599671]
[1765551477886,0.01582,92595.0,92583.0,0.01080111]
[1765551477887,0.01080006,92592.0,92583.0,0.01080111]
[1765551478100,0.01080076,92586.0,92583.0,0.01080111]
[1765551478304,0.036591,92584.0,92580.0,0.00321601]
[1765551478505,0.01582,92581.0,92580.0,0.01401747]
[1765551478851,0.21601095,92588.0,92580.0,0.01401747]
[1765551478852,0.00997,92586.0,92585.0,0.22681859]
[1765551479054,0.02394,92600.0,92595.0,0.21599438]
[1765551479258,0.02394,92606.0,92595.0,0.21599438]
[1765551479472,0.02579,92596.0,92595.0,0.21599438]
[1765551479679,0.04973,92596.0,92588.0,0.01080053]
[1765551479885,0.03391,92596.0,92593.0,0.01079995]
[1765551480060,0.02394,92595.0,92592.0,0.01080006]
[1765551480244,0.02394,92595.0,92590.0,0.22680535]
[1765551480245,0.02714936,92594.0,92590.0,0.22680535]
[1765551480449,0.02714936,92594.0,92585.0,0.002]
[1765551480450,0.21601538,92586.0,92585.0,0.002]
[1765551480647,0.23183538,92586.0,92580.0,0.00160314]
[1765551480850,0.01582,92581.0,92580.0,0.00160314]
[1765551481351,0.01724,92586.0,92580.0,0.00160314]
[1765551481553,0.01724,92586.0,92583.0,0.22682348]
[1765551481972,0.01582,92584.0,92583.0,0.22682348]
[1765551482391,0.03976,92584.0,92583.0,0.22682348]
[1765551482749,0.03976,92584.0,92580.0,0.0124046]
[1765551482952,0.01582,92581.0,92580.0,0.0124046]
[1765551483354,0.03976,92581.0,92580.0,0.00160314]
[1765551483761,0.03976,92581.0,92580.0,0.00360314]
[1765551483959,0.09234058,92581.0,92580.0,0.00360314]
[1765551484181,0.03976,92581.0,92580.0,0.00160314]
[1765551484917,0.25578704,92581.0,92580.0,0.00160314]
[1765551485119,0.30580543,92581.0,92580.0,0.00160314]
[1765551485322,1.02472143,92581.0,92580.0,0.00160314]
[1765551485554,1.31542143,92581.0,92580.0,0.00160314]
[1765551485761,1.42592905,92581.0,92580.0,0.00160314]
[1765551486137,1.42992905,92581.0,92580.0,0.00160314]
[1765551487112,1.42592905,92581.0,92580.0,0.00160314]
[1765551487679,0.92730243,92581.0,92580.0,0.00160314]
[1765551488044,0.77599243,92581.0,92580.0,0.00160314]
[1765551488251,0.03976,92581.0,92580.0,0.00160314]
[1765551488453,0.25578704,92581.0,92580.0,0.00160314]
[1765551488877,0.03976,92581.0,92580.0,0.00160314]
[1765551489667,0.04676,92581.0,92580.0,0.00160314]
[1765551490051,0.04676,92581.0,92580.0,0.21763251]
[1765551490457,0.03976,92581.0,92580.0,0.21763251]
[1765551490957,0.007,92581.0,92580.0,0.33165647]
[1765551491171,0.007,92581.0,92580.0,0.26244538]
[1765551491796,0.007,92581.0,92580.0,0.30099538]
[1765551492217,0.007,92581.0,92580.0,0.59169538]
[1765551492423,0.007,92581.0,92580.0,0.59469538]
[1765551492631,0.00997,92606.0,92605.0,0.21597105]
[1765551492828,0.02394,92617.0,92615.0,0.21594774]
[1765551493104,0.02579,92616.0,92615.0,0.21594774]
[1765551493435,0.02579,92616.0,92613.0,0.22674944]
[1765551493638,0.01582,92614.0,92613.0,0.22674944]
[1765551494037,0.03976,92614.0,92613.0,0.22674944]
[1765551494311,0.03976,92614.0,92613.0,0.01079762]
[1765551494651,0.03976,92614.0,92600.0,1.21598192]
[1765551494652,0.01079785,92611.0,92605.0,0.21597105]
[1765551494861,0.01079855,92605.0,92601.0,0.01079901]
[1765551495061,0.02394,92613.0,92608.0,0.21596309]
[1765551495256,0.01079808,92609.0,92605.0,0.01079855]
[1765551495589,0.01582,92606.0,92605.0,0.01079855]
[1765551496212,0.03976,92606.0,92605.0,0.01079855]
[1765551497510,0.03976,92606.0,92600.0,0.0432]
[1765551497511,0.01079971,92595.0,92592.0,0.0432]
[1765551497717,0.01079971,92595.0,92565.0,0.00634]
[1765551497718,0.01080041,92589.0,92584.0,0.010801]
[1765551497939,0.02609,92593.0,92584.0,0.010801]
[1765551497940,0.01612,92586.0,92585.0,0.01080088]
[1765551498151,0.01022702,92592.0,92589.0,0.01080041]
[1765551498379,0.01022702,92592.0,92590.0,0.22680634]
[1765551498582,0.0233,92591.0,92590.0,0.0108003]
[1765551498719,0.03937,92591.0,92590.0,0.0108003]
[1765551499560,0.010801,92584.0,92581.0,0.01080135]
[1765551499759,0.01607,92581.0,92580.0,0.21763162]
[1765551500362,0.0233,92586.0,92585.0,0.21601771]
[1765551500640,0.01022702,92590.0,92589.0,0.21600838]
[1765551500808,0.0233,92589.0,92587.0,0.01080065]
[1765551501012,0.01607,92588.0,92587.0,0.01080065]
[1765551501213,0.01607,92588.0,92580.0,0.00160314]
[1765551501214,0.21602531,92582.0,92580.0,0.00160314]
[1765551501415,0.03937,92581.0,92580.0,0.00160314]
[1765551501883,0.08938839,92581.0,92580.0,0.00160314]
[1765551502058,0.13258839,92581.0,92580.0,0.00160314]
[1765551502268,0.08938839,92581.0,92580.0,0.00160314]
[1765551502483,0.45923354,92581.0,92580.0,0.00160314]
[1765551502689,0.50243354,92581.0,92580.0,0.00160314]
[1765551503216,0.50243354,92581.0,92580.0,0.00360314]
[1765551503621,0.51967354,92581.0,92580.0,0.00360314]
[1765551504258,0.44052839,92581.0,92580.0,0.00360314]
[1765551504464,0.44052839,92581.0,92580.0,0.00160314]
[1765551504894,0.03937,92581.0,92580.0,0.00160314]
[1765551505097,0.03937,92581.0,92580.0,0.0124046]
[1765551505298,0.04437,92581.0,92580.0,0.0124046]
[1765551506303,0.26039704,92581.0,92580.0,0.00160314]
[1765551507597,0.04437,92581.0,92580.0,0.00160314]
[1765551507804,0.03937,92581.0,92580.0,0.00160314]
[1765551508283,0.04337,92581.0,92580.0,0.00160314]
[1765551508618,0.25939704,92581.0,92580.0,0.00160314]
[1765551508824,0.33592794,92581.0,92580.0,0.00160314]
[1765551509281,0.03937,92581.0,92580.0,0.00160314]
[1765551509499,0.05359702,92581.0,92580.0,0.00160314]
[1765551511142,0.26962406,92581.0,92580.0,0.00160314]
[1765551511359,0.04337,92581.0,92580.0,0.21763251]
[1765551511578,0.25939704,92581.0,92580.0,0.00171938]
[1765551511756,0.03937,92581.0,92580.0,0.00171938]
[1765551511964,0.04959702,92581.0,92580.0,0.00171938]
[1765551512202,0.04337,92581.0,92580.0,0.00171938]
[1765551512406,0.04337,92581.0,92580.0,0.00333225]
[1765551512407,0.02007,92581.0,92580.0,0.00333225]
[1765551512601,0.004,92581.0,92580.0,0.07811733]
[1765551512797,0.004,92581.0,92580.0,0.00333225]
[1765551513159,0.004,92581.0,92580.0,0.01965225]
[1765551513367,0.004,92581.0,92580.0,0.08673225]
[1765551513581,0.00997,92593.0,92591.0,0.21600371]
[1765551515993,0.00997,92593.0,92591.0,0.21761658]
[1765551516147,0.0233,92603.0,92602.0,0.21597805]
[1765551516345,0.2659,92611.0,92607.0,0.21596639]
[1765551516544,0.27669785,92611.0,92607.0,0.21596639]
[1765551516919,0.04934,92608.0,92605.0,0.22676771]
[1765551517134,0.02686843,92606.0,92603.0,0.01079878]
[1765551517341,0.0233,92605.0,92603.0,0.01079878]
[1765551517556,0.01607,92604.0,92603.0,0.01079878]
[1765551518699,0.03937,92604.0,92603.0,0.01079878]
[1765551518941,0.03937,92604.0,92603.0,0.2267745]
[1765551519153,0.00997,92608.0,92607.0,0.21596639]
[1765551519368,0.00997,92608.0,92605.0,0.01079855]
[1765551519369,0.0207682,92608.0,92605.0,0.01079855]
[1765551519568,0.01607,92606.0,92603.0,0.01079878]
[1765551519771,0.01607,92604.0,92603.0,0.2267738]
[1765551520157,0.01607,92604.0,92597.0,0.21598943]
[1765551520158,0.21598012,92602.0,92597.0,0.21598943]
[1765551520289,0.05016866,92604.0,92597.0,0.21598971]
[1765551520290,0.01607,92598.0,92597.0,0.21598971]
[1765551520497,0.004,92606.0,92603.0,0.01079878]
[1765551520902,0.01607,92604.0,92601.0,0.01079901]
[1765551521111,0.01607,92602.0,92601.0,0.22677919]
[1765551521537,0.03937,92602.0,92601.0,0.22677919]
[1765551521779,0.00997,92608.0,92601.0,0.22677919]
[1765551521780,0.00997,92608.0,92607.0,0.21596639]
[1765551522478,0.02604,92608.0,92607.0,0.21596639]
[1765551522906,0.04934,92608.0,92607.0,0.21596639]
[1765551523126,0.080258,92608.0,92605.0,0.22676899]
[1765551523345,0.01607,92606.0,92603.0,0.01079878]
[1765551523552,0.0233,92607.0,92604.0,0.22676974]
[1765551523755,0.0233,92606.0,92605.0,0.01079855]
[1765551524176,0.03937,92606.0,92605.0,0.01079855]
[1765551524382,0.09162087,92606.0,92605.0,0.01079855]
[1765551524809,0.0107996,92596.0,92569.0,0.02388]
[1765551524977,0.0107996,92596.0,92586.0,0.01080076]
[1765551524978,0.2268028,92592.0,92586.0,0.01080076]
[1765551525184,0.2268028,92592.0,92585.0,0.01080088]
[1765551525185,0.21600274,92592.0,92585.0,0.01080088]
[1765551525481,0.02901868,92626.0,92591.0,0.00161287]
[1765551525685,0.02901868,92626.0,92586.0,0.21601352]
[1765551525686,0.00997,92631.0,92606.0,0.3339]
[1765551525914,0.00997,92631.0,92606.0,0.36903287]
[1765551525915,0.00997,92623.0,92606.0,0.36903287]
[1765551526131,0.00997,92623.0,92606.0,0.35271287]
[1765551526542,0.00997,92623.0,92606.0,0.36903287]
[1765551526786,0.0233,92618.0,92606.0,0.29231287]
[1765551527231,0.00997,92623.0,92606.0,0.40761657]
[1765551527433,0.00997,92623.0,92606.0,0.37571287]
[1765551527633,0.00997,92623.0,92620.0,0.0107968]
[1765551527910,0.00997,92623.0,92621.0,0.21593375]
[1765551528369,0.0398,92622.0,92621.0,0.21593375]
[1765551528940,0.03988788,92622.0,92621.0,0.21593375]
[1765551529294,0.03988788,92622.0,92621.0,0.32534727]
[1765551529295,8.788e-05,92622.0,92621.0,0.32534727]
[1765551529547,8.788e-05,92622.0,92621.0,0.32734727]
[1765551529694,8.788e-05,92622.0,92621.0,0.28756727]
[1765551529901,8.788e-05,92622.0,92621.0,0.21954662]
[1765551530102,8.788e-05,92622.0,92621.0,0.26274662]
[1765551531821,8.788e-05,92622.0,92621.0,0.26074662]
[1765551532588,8.788e-05,92622.0,92621.0,0.21954662]
[1765551533359,8.788e-05,92622.0,92621.0,0.21754662]
[1765551534009,8.788e-05,92622.0,92621.0,0.26274662]
[1765551534427,0.00022972,92628.0,92627.0,0.21591976]
[1765551534677,0.00022972,92628.0,92627.0,0.26073263]
[1765551534881,0.00022972,92628.0,92627.0,0.21753263]
[1765551535029,0.01594972,92628.0,92627.0,0.21753263]
[1765551535517,0.00022972,92628.0,92627.0,0.21753263]
[1765551536706,0.00022972,92628.0,92627.0,0.22353263]
[1765551537773,0.00022972,92628.0,92627.0,0.21753263]
[1765551538001,0.00022972,92628.0,92627.0,0.21853263]
[1765551538184,0.00022972,92628.0,92627.0,0.22053263]
[1765551539064,0.03967972,92628.0,92627.0,0.003]
[1765551539291,0.04990674,92628.0,92627.0,0.003]
[1765551539472,0.09310674,92628.0,92627.0,0.003]
[1765551539922,0.14312513,92628.0,92627.0,0.003]
[1765551540123,0.14312513,92628.0,92627.0,0.002]
[1765551540405,0.43382513,92628.0,92627.0,0.002]
[1765551540612,0.01079843,92606.0,92601.0,0.25927019]
[1765551540815,0.02569,92602.0,92601.0,0.0541767]
[1765551540959,0.02569,92602.0,92601.0,0.04337769]
[1765551541155,0.04942,92602.0,92601.0,0.04337769]
[1765551542183,0.04942,92602.0,92601.0,8.788e-05]
[1765551542738,0.12735343,92602.0,92601.0,8.788e-05]
[1765551542945,0.04942,92602.0,92601.0,0.21606826]
[1765551543142,0.04289,92602.0,92601.0,0.21606826]
[1765551543354,0.04289,92602.0,92601.0,8.788e-05]
[1765551543581,0.28259805,92602.0,92601.0,8.788e-05]
[1765551544299,0.06662,92602.0,92601.0,8.788e-05]
[1765551544485,0.04289,92602.0,92601.0,8.788e-05]
[1765551544640,0.07062,92602.0,92601.0,8.788e-05]
[1765551544849,0.1055182,92602.0,92601.0,8.788e-05]
[1765551545407,0.1015182,92602.0,92601.0,8.788e-05]
[1765551545620,0.43923659,92602.0,92601.0,8.788e-05]
[1765551545808,0.48443659,92602.0,92601.0,8.788e-05]
[1765551546003,0.3760182,92602.0,92601.0,8.788e-05]
[1765551546269,0.36132,92602.0,92601.0,8.788e-05]
[1765551547188,0.34412,92602.0,92601.0,8.788e-05]
[1765551547406,0.02969,92602.0,92601.0,8.788e-05]
[1765551547621,0.04689,92602.0,92601.0,8.788e-05]
[1765551547824,0.09798551,92602.0,92601.0,8.788e-05]
[1765551548488,0.09598551,92602.0,92601.0,8.788e-05]
[1765551548698,0.13718551,92602.0,92601.0,8.788e-05]
[1765551548872,0.09398551,92602.0,92601.0,8.788e-05]
[1765551549082,0.09798551,92602.0,92601.0,8.788e-05]
[1765551549616,0.10098551,92602.0,92601.0,8.788e-05]
[1765551549762,0.05642,92602.0,92601.0,8.788e-05]
[1765551549971,0.07362,92602.0,92601.0,8.788e-05]
[1765551550838,0.08384702,92602.0,92601.0,8.788e-05]
[1765551550989,0.06011702,92602.0,92601.0,8.788e-05]
[1765551551210,0.14613813,92602.0,92601.0,8.788e-05]
[1765551552169,0.14213813,92602.0,92601.0,8.788e-05]
[1765551552314,0.13913813,92602.0,92601.0,8.788e-05]
[1765551552520,0.35911618,92602.0,92601.0,8.788e-05]
[1765551552706,0.34888916,92602.0,92601.0,8.788e-05]
[1765551552915,0.35188916,92602.0,92601.0,8.788e-05]
[1765551553085,0.04589,92602.0,92601.0,0.21606826]
[1765551553289,0.04289,92602.0,92601.0,0.21606826]
[1765551553748,0.04989,92602.0,92601.0,0.21606826]
[1765551554199,0.07362,92602.0,92601.0,0.21606826]
[1765551554722,0.07362,92602.0,92601.0,8.788e-05]
[1765551554924,0.10278,92602.0,92601.0,8.788e-05]
[1765551555367,0.11300702,92602.0,92601.0,8.788e-05]
[1765551555575,0.08558,92602.0,92601.0,8.788e-05]
[1765551556055,0.07858,92602.0,92601.0,0.21606826]
[1765551556209,0.02569,92602.0,92601.0,0.21606826]
[1765551556391,0.04942,92602.0,92601.0,0.21706826]
[1765551556590,0.04942,92602.0,92601.0,0.21806826]
[1765551556794,0.04942,92602.0,92601.0,0.00208788]
[1765551557020,0.09330572,92602.0,92601.0,0.00208788]
[1765551557234,0.09330572,92602.0,92601.0,0.00108788]
[1765551557435,0.09330572,92602.0,92601.0,8.788e-05]
[1765551557658,0.09630572,92602.0,92601.0,8.788e-05]
[1765551558305,0.10030572,92602.0,92601.0,8.788e-05]
[1765551559013,0.44102411,92602.0,92601.0,8.788e-05]
[1765551559187,0.47399709,92602.0,92601.0,8.788e-05]
[1765551559709,0.47099709,92602.0,92601.0,8.788e-05]
[1765551560307,0.46999709,92602.0,92601.0,8.788e-05]
[1765551560493,0.47399709,92602.0,92601.0,8.788e-05]
[1765551560694,0.44033839,92602.0,92601.0,8.788e-05]
[1765551561015,0.43733839,92602.0,92601.0,8.788e-05]
[1765551561263,0.43333839,92602.0,92601.0,8.788e-05]
[1765551561462,0.43633839,92602.0,92601.0,8.788e-05]
[1765551561677,0.44033839,92602.0,92601.0,8.788e-05]
[1765551561848,0.55084601,92602.0,92601.0,8.788e-05]
[1765551563972,0.54784601,92602.0,92601.0,8.788e-05]
[1765551564176,0.54384601,92602.0,92601.0,8.788e-05]
[1765551564582,0.55184601,92602.0,92601.0,8.788e-05]
[1765551564993,0.44133839,92602.0,92601.0,8.788e-05]
[1765551565243,0.45853839,92602.0,92601.0,8.788e-05]
[1765551568326,0.48179981,92602.0,92601.0,8.788e-05]
[1765551570289,0.48179981,92602.0,92580.0,0.00160314]
[1765551570290,0.26604543,92581.0,92580.0,0.00160314]
[1765551570530,0.37045016,92581.0,92580.0,0.00171938]
[1765551570708,0.39367016,92581.0,92580.0,0.00171938]
[1765551571128,0.32170543,92581.0,92580.0,0.00171938]
[1765551572781,0.32470543,92581.0,92580.0,0.00171938]
[1765551573323,0.65860543,92581.0,92580.0,0.00171938]
[1765551574252,0.66160543,92581.0,92580.0,0.00171938]
[1765551576317,0.61840543,92581.0,92580.0,0.00171938]
[1765551576490,0.64166262,92581.0,92580.0,0.00171938]
[1765551576724,0.64166262,92581.0,92541.0,0.01080602]
[1765551576725,0.21604338,92574.0,92541.0,0.01080602]
[1765551577060,0.27448338,92574.0,92551.0,0.01080485]
[1765551577223,0.56240338,92574.0,92561.0,0.01080368]
[1765551577428,0.54520338,92574.0,92563.0,0.01080345]
[1765551577627,0.56240338,92574.0,92563.0,0.01080345]
[1765551578009,0.425411,92574.0,92557.0,0.01080415]
[1765551578192,0.429411,92574.0,92557.0,0.01080415]
[1765551578399,0.429411,92574.0,92543.0,0.21611566]
[1765551578400,0.77012939,92574.0,92543.0,0.21611566]
[1765551578609,0.79337902,92574.0,92544.0,0.01080567]
[1765551578814,0.79337902,92574.0,92546.0,0.01080543]
[1765551579021,0.78937902,92574.0,92557.0,0.01080415]
[1765551579230,0.72292939,92574.0,92557.0,0.01080415]
[1765551579463,0.72592939,92574.0,92554.0,0.0108045]
[1765551579673,0.76912939,92574.0,92550.0,0.01080497]
[1765551579874,0.76912939,92574.0,92555.0,0.01080438]
[1765551580086,0.76912939,92574.0,92550.0,0.01080497]
[1765551580286,0.76912939,92574.0,92555.0,0.01080438]
[1765551580486,0.76912939,92574.0,92554.0,0.0108045]
[1765551580902,0.76912939,92574.0,92558.0,0.01080403]
[1765551581102,0.76612939,92574.0,92556.0,0.01080426]
[1765551581432,0.76812939,92574.0,92557.0,0.01080415]